fUSD/lending_fUSD_20260405
["ID","MTS","AMOUNT","RATE_DAILY","PERIOD"]
[419756264,1775356253083,-150.0,0.00014989,2]
[419756265,1775356253093,-150.0,0.00015,2]
[419756266,1775356253103,-150.0,0.00015,2]
[419756267,1775356253112,-150.0,0.00015003,2]
[419756268,1775356253123,-150.0,0.00015004,2]
[419756269,1775356253132,-150.0,0.00015004,2]
[419756270,1775356253142,-150.0,0.00015006,2]
[419756271,1775356253152,-150.0,0.00015007,2]
[419756272,1775356253162,-785.67,0.00015011,2]
[419756273,1775356253172,-150.0,0.0001502,2]
[419756274,1775356253185,-150.0,0.00015022,2]
[419756275,1775356253195,-150.0,0.00015025,2]
[419756276,1775356253206,-150.0,0.00015029,2]
[419756277,1775356253217,-150.0,0.0001503,2]
[419756278,1775356253227,-150.0,0.0001503,2]
[419756279,1775356253236,-150.0,0.0001503,2]
[419756280,1775356253246,-150.0,0.00015034,2]
[419756281,1775356253256,-212.34913703,0.00015037,2]
[419756282,1775356253266,-150.0,0.00015037,2]
[419756283,1775356253276,-150.0,0.00015044,2]
[419756284,1775356253286,-1269.51892114,0.0001505,2]
[419756285,1775356253297,-150.0,0.00015053,2]
[419756286,1775356253307,-150.0,0.00015055,2]
[419756287,1775356253316,-150.0,0.00015056,2]
[419756288,1775356253326,-150.0,0.00015057,2]
[419756289,1775356253336,-150.0,0.00015062,2]
[419756290,1775356253348,-150.0,0.00015064,2]
[419756291,1775356253358,-150.0,0.00015067,2]
[419756292,1775356253368,-800.0,0.00015068,2]
[419756293,1775356253378,-150.0,0.00015069,2]
[419756294,1775356253388,-150.0,0.00015079,2]
[419756295,1775356253398,-150.0,0.00015079,2]
[419756296,1775356253408,-150.0,0.0001508,2]
[419756297,1775356253417,-150.0,0.00015082,2]
[419756298,1775356253428,-150.0,0.00015086,2]
[419756299,1775356253437,-150.0,0.00015086,2]
[419756300,1775356253448,-150.0,0.00015086,2]
[419756301,1775356253457,-150.0,0.00015094,2]
[419756302,1775356253467,-150.0,0.00015099,2]
[419756303,1775356253477,-150.0,0.00015102,2]
[419756304,1775356253488,-150.0,0.00015103,2]
[419756305,1775356253498,-150.0,0.00015108,2]
[419756306,1775356253508,-150.0,0.00015111,2]
[419756307,1775356253518,-150.0,0.00015114,2]
[419756308,1775356253529,-150.0,0.00015117,2]
[419756309,1775356253539,-150.0,0.00015118,2]
[419756310,1775356253549,-150.0,0.00015125,2]
[419756311,1775356253559,-150.0,0.00015127,2]
[419756312,1775356253569,-150.0,0.00015127,2]
[419756313,1775356253579,-247.91447272,0.00015129,2]
[419756314,1775356253589,-150.0,0.00015133,2]
[419756315,1775356253599,-150.0,0.00015134,2]
[419756316,1775356253609,-150.0,0.00015135,2]
[419756317,1775356253619,-150.0,0.00015136,2]
[419756318,1775356253629,-150.0,0.00015143,2]
[419756319,1775356253639,-150.0,0.00015151,2]
[419756320,1775356253649,-150.0,0.00015152,2]
[419756321,1775356253659,-150.0,0.00015154,2]
[419756322,1775356253670,-150.0,0.00015155,2]
[419756323,1775356253679,-8099.66561587,0.00015157,2]
[419756324,1775356253690,-150.0,0.00015161,2]
[419756325,1775356253699,-150.0,0.00015167,2]
[419756326,1775356253709,-150.0,0.00015171,2]
[419756327,1775356253719,-150.0,0.00015172,2]
[419756328,1775356253729,-150.0,0.00015176,2]
[419756329,1775356253739,-150.0,0.00015176,2]
[419756330,1775356253749,-150.0,0.00015184,2]
[419756331,1775356253759,-150.0,0.00015185,2]
[419756332,1775356253770,-150.0,0.00015187,2]
[419756333,1775356253780,-150.0,0.00015191,2]
[419756334,1775356253790,-150.0,0.000152,2]
[419756335,1775356253800,-150.0,0.000152,2]
[419756336,1775356253811,-150.0,0.000152,2]
[419756337,1775356253820,-150.0,0.000152,2]
[419756338,1775356253830,-150.0,0.000152,2]
[419756339,1775356253840,-150.0,0.000152,2]
[419756340,1775356253850,-1600.0,0.00015209,2]
[419756341,1775356253860,-150.0,0.00015209,2]
[419756342,1775356253871,-150.0,0.00015213,2]
[419756343,1775356253882,-150.0,0.00015215,2]
[419756344,1775356253892,-150.0,0.00015216,2]
[419756345,1775356253903,-150.0,0.00015224,2]
[419756346,1775356253914,-150.0,0.00015224,2]
[419756347,1775356253925,-150.0,0.00015228,2]
[419756348,1775356253936,-150.0,0.00015229,2]
[419756349,1775356253947,-150.0,0.00015233,2]
[419756350,1775356253957,-150.0,0.00015239,2]
[419756351,1775356253968,-150.0,0.00015245,2]
[419756352,1775356253980,-150.0,0.00015246,2]
[419756353,1775356253992,-150.0,0.00015248,2]
[419756354,1775356254004,-150.0,0.00015249,2]
[419756355,1775356254016,-150.0,0.00015257,2]
[419756356,1775356254028,-150.0,0.00015264,2]
[419756357,1775356254040,-150.0,0.00015265,2]
[419756358,1775356254052,-150.0,0.00015266,2]
[419756359,1775356254063,-150.0,0.00015267,2]
[419756360,1775356254073,-150.0,0.00015273,2]
[419756361,1775356254085,-150.0,0.00015273,2]
[419756362,1775356254097,-150.0,0.00015275,2]
[419756363,1775356254109,-150.0,0.00015282,2]
[419756364,1775356254121,-150.0,0.00015283,2]
[419756365,1775356254132,-785.67,0.00015285,2]
[419756366,1775356254142,-150.0,0.00015286,2]
[419756367,1775356254154,-150.0,0.00015289,2]
[419756368,1775356254164,-150.0,0.00015292,2]
[419756369,1775356254174,-150.0,0.00015297,2]
[419756370,1775356254185,-150.0,0.00015298,2]
[419756371,1775356254195,-150.0,0.00015301,2]
[419756372,1775356254206,-150.0,0.00015306,2]
[419756373,1775356254216,-150.0,0.00015314,2]
[419756374,1775356254227,-150.0,0.00015314,2]
[419756375,1775356254237,-150.0,0.00015314,2]
[419756376,1775356254248,-150.0,0.00015318,2]
[419756377,1775356254258,-150.0,0.0001532,2]
[419756378,1775356254269,-150.0,0.00015321,2]
[419756379,1775356254279,-150.0,0.00015321,2]
[419756380,1775356254290,-150.0,0.00015331,2]
[419756381,1775356254301,-754.54,0.00015333,2]
[419756382,1775356254311,-754.54,0.00015333,2]
[419756383,1775356254322,-754.54,0.00015333,2]
[419756384,1775356254333,-754.54,0.00015333,2]
[419756385,1775356254343,-754.75463941,0.00015333,2]
[419756386,1775356254354,-1166.27,0.00015333,2]
[419756387,1775356254365,-1166.27,0.00015333,2]
[419756388,1775356254376,-1166.27,0.00015333,2]
[419756389,1775356254387,-1166.27,0.00015333,2]
[419756390,1775356254397,-1166.50278756,0.00015333,2]
[419756391,1775356254408,-150.0,0.00015333,2]
[419756392,1775356254419,-150.0,0.00015336,2]
[419756393,1775356254430,-150.0,0.00015338,2]
[419756394,1775356254442,-2000.0,0.00015342,2]
[419756395,1775356254453,-500.0,0.00015342,2]
[419756396,1775356254463,-2000.0,0.00015342,2]
[419756397,1775356254474,-2000.0,0.00015342,2]
[419756398,1775356254485,-1689.37318328,0.00015342,2]
[419756399,1775356254496,-2000.0,0.00015342,2]
[419756400,1775356254507,-692.44434622,0.00015342,2]
[419756401,1775356254517,-2000.0,0.00015342,2]
[419756402,1775356254528,-2000.0,0.00015342,2]
[419756403,1775356254539,-2000.0,0.00015342,2]
[419756404,1775356254550,-450.63286364,0.00015342,2]
[419756405,1775356254561,-1100.33490613,0.00015342,2]
[419756406,1775356254571,-2000.0,0.00015342,2]
[419756407,1775356254582,-2000.0,0.00015342,2]
[419756408,1775356254593,-2000.0,0.00015342,2]
[419756409,1775356254604,-323.00574972,0.00015342,2]
[419756410,1775356254615,-150.0,0.00015343,2]
[419756411,1775356254625,-150.0,0.00015344,2]
[419756412,1775356254636,-150.0,0.00015345,2]
[419756413,1775356254647,-150.0,0.00015347,2]
[419756414,1775356254658,-424.32780316,0.00015353,2]
[419756415,1775356254669,-150.0,0.00015356,2]
[419756416,1775356254680,-150.0,0.00015363,2]
[419756417,1775356254691,-150.0,0.00015366,2]
[419756418,1775356254701,-5446.0,0.00015368,2]
[419756419,1775356254712,-150.0,0.0001537,2]
[419756420,1775356254722,-150.0,0.0001537,2]
[419756421,1775356254733,-150.0,0.0001537,2]
[419756422,1775356254744,-150.0,0.00015371,2]
[419756423,1775356254754,-150.0,0.00015375,2]
[419756424,1775356254766,-176.857268,0.00015377,2]
[419756425,1775356254776,-150.0,0.00015378,2]
[419756426,1775356254787,-150.0,0.0001538,2]
[419756427,1775356254798,-431617.8312116,0.0001538,2]
[419756428,1775356254808,-12779.381701,0.0001538,2]
[419756429,1775356254819,-916.7649978,0.0001538,2]
[419756430,1775356254830,-150.0,0.00015393,2]
[419756431,1775356254840,-150.0,0.00015394,2]
[419756432,1775356254851,-150.0,0.00015396,2]
[419756433,1775356254862,-150.0,0.00015396,2]
[419756434,1775356254872,-150.0,0.00015397,2]
[419756435,1775356254883,-150.0,0.000154,2]
[419756436,1775356254895,-150.0,0.000154,2]
[419756437,1775356254905,-150.0,0.00015411,2]
[419756438,1775356254916,-150.0,0.00015412,2]
[419756439,1775356254926,-150.0,0.00015418,2]
[419756440,1775356254937,-150.0,0.00015418,2]
[419756441,1775356254947,-150.0,0.00015423,2]
[419756442,1775356254958,-150.0,0.00015426,2]
[419756443,1775356254968,-150.0,0.00015429,2]
[419756444,1775356254979,-150.0,0.00015429,2]
[419756445,1775356254990,-150.0,0.0001543,2]
[419756446,1775356255000,-150.0,0.00015442,2]
[419756447,1775356255011,-150.0,0.00015445,2]
[419756448,1775356255021,-5446.0,0.00015446,2]
[419756449,1775356255032,-610.97311835,0.00015447,2]
[419756450,1775356255042,-150.0,0.00015448,2]
[419756451,1775356255053,-150.0,0.00015449,2]
[419756452,1775356255064,-150.0,0.00015457,2]
[419756453,1775356255075,-150.0,0.00015457,2]
[419756454,1775356255086,-150.0,0.00015461,2]
[419756455,1775356255097,-150.0,0.00015467,2]
[419756456,1775356255108,-150.0,0.00015467,2]
[419756457,1775356255120,-150.0,0.00015467,2]
[419756458,1775356255131,-150.0,0.00015467,2]
[419756459,1775356255141,-150.0,0.00015467,2]
[419756460,1775356255151,-150.0,0.00015467,2]
[419756461,1775356255162,-150.0,0.00015467,2]
[419756462,1775356255172,-150.0,0.00015475,2]
[419756463,1775356255182,-150.0,0.00015478,2]
[419756464,1775356255193,-150.0,0.00015485,2]
[419756465,1775356255205,-150.0,0.00015486,2]
[419756466,1775356255215,-150.0,0.00015487,2]
[419756467,1775356255227,-150.0,0.00015491,2]
[419756468,1775356255239,-150.0,0.00015494,2]
[419756469,1775356255249,-824.43,0.000155,2]
[419756470,1775356255260,-150.0,0.00015502,2]
[419756471,1775356255270,-150.0,0.00015503,2]
[419756472,1775356255280,-4000.0,0.00015507,2]
[419756473,1775356255290,-150.0,0.0001551,2]
[419756474,1775356255300,-150.0,0.00015514,2]
[419756475,1775356255310,-150.0,0.00015515,2]
[419756476,1775356255321,-150.0,0.00015515,2]
[419756477,1775356255332,-150.0,0.00015517,2]
[419756478,1775356255343,-150.0,0.00015522,2]
[419756479,1775356255353,-150.0,0.00015527,2]
[419756480,1775356255364,-150.0,0.00015528,2]
[419756481,1775356255374,-150.0,0.00015533,2]
[419756482,1775356255384,-150.0,0.00015539,2]
[419756483,1775356255394,-150.0,0.0001554,2]
[419756484,1775356255404,-150.0,0.00015543,2]
[419756485,1775356255414,-150.0,0.00015543,2]
[419756486,1775356255425,-150.0,0.00015543,2]
[419756487,1775356255435,-150.0,0.00015547,2]
[419756488,1775356255445,-150.0,0.00015554,2]
[419756489,1775356255455,-150.0,0.00015556,2]
[419756490,1775356255464,-150.0,0.00015559,2]
[419756491,1775356255474,-785.67,0.00015559,2]
[419756492,1775356255484,-150.0,0.00015559,2]
[419756493,1775356255494,-150.0,0.00015564,2]
[419756494,1775356255504,-150.0,0.00015564,2]
[419756495,1775356255514,-150.0,0.00015571,2]
[419756496,1775356255525,-150.0,0.00015576,2]
[419756497,1775356255535,-150.0,0.00015577,2]
[419756498,1775356255545,-150.0,0.00015577,2]
[419756499,1775356255555,-150.0,0.0001558,2]
[419756500,1775356255565,-150.0,0.00015588,2]
[419756501,1775356255575,-150.0,0.00015592,2]
[419756502,1775356255586,-150.0,0.00015595,2]
[419756503,1775356255596,-150.0,0.000156,2]
[419756504,1775356255607,-150.0,0.000156,2]
[419756505,1775356255617,-150.0,0.00015607,2]
[419756506,1775356255627,-150.0,0.00015608,2]
[419756507,1775356255637,-150.0,0.00015608,2]
[419756508,1775356255648,-150.0,0.00015612,2]
[419756509,1775356255659,-150.0,0.00015612,2]
[419756510,1775356255669,-150.0,0.00015614,2]
[419756511,1775356255679,-440.0,0.00015615,2]
[419756512,1775356255690,-150.0,0.00015624,2]
[419756513,1775356255700,-150.0,0.00015629,2]
[419756514,1775356255710,-150.0,0.00015632,2]
[419756515,1775356255720,-150.0,0.00015633,2]
[419756516,1775356255730,-150.0,0.00015636,2]
[419756517,1775356255741,-150.0,0.00015638,2]
[419756518,1775356255751,-150.0,0.00015641,2]
[419756519,1775356255761,-150.0,0.00015644,2]
[419756520,1775356255772,-199.18875401,0.00015646,2]
[419756521,1775356255782,-150.0,0.00015651,2]
[419756522,1775356255792,-150.0,0.00015657,2]
[419756523,1775356255802,-150.0,0.00015657,2]
[419756524,1775356255812,-150.0,0.00015659,2]
[419756525,1775356255822,-150.0,0.00015661,2]
[419756526,1775356255832,-150.0,0.00015661,2]
[419756527,1775356255842,-150.0,0.00015667,2]
[419756528,1775356255852,-150.0,0.00015668,2]
[419756529,1775356255863,-150.0,0.00015669,2]
[419756530,1775356255873,-150.0,0.00015673,2]
[419756531,1775356255883,-267.06190101,0.00015684,2]
[419756532,1775356255893,-150.0,0.00015685,2]
[419756533,1775356255903,-150.0,0.00015685,2]
[419756534,1775356255913,-150.0,0.00015686,2]
[419756535,1775356255923,-150.0,0.00015687,2]
[419756536,1775356255934,-150.0,0.0001569,2]
[419756537,1775356255945,-150.0,0.00015698,2]
[419756538,1775356255956,-3000.0,0.000157,5]
[419756539,1775356255966,-150.0,0.00015706,2]
[419756540,1775356255976,-150.0,0.00015706,2]
[419756541,1775356255986,-150.0,0.00015709,2]
[419756542,1775356255997,-150.0,0.00015709,2]
[419756543,1775356256008,-150.0,0.00015711,2]
[419756544,1775356256019,-150.0,0.00015714,2]
[419756545,1775356256030,-150.0,0.00015722,2]
[419756546,1775356256040,-150.0,0.00015724,2]
[419756547,1775356256051,-150.0,0.00015728,2]
[419756548,1775356256060,-150.0,0.00015733,2]
[419756549,1775356256071,-150.0,0.00015733,2]
[419756550,1775356256081,-150.0,0.00015733,2]
[419756551,1775356256091,-150.0,0.00015738,2]
[419756552,1775356256101,-150.0,0.00015739,2]
[419756553,1775356256111,-150.0,0.00015743,2]
[419756554,1775356256122,-150.0,0.00015743,2]
[419756555,1775356256132,-440.0,0.00015747,2]
[419756556,1775356256142,-150.0,0.00015755,2]
[419756557,1775356256152,-150.0,0.00015758,2]
[419756558,1775356256162,-150.0,0.00015758,2]
[419756559,1775356256173,-150.0,0.00015758,2]
[419756560,1775356256183,-150.0,0.00015761,2]
[419756561,1775356256193,-150.0,0.00015764,2]
[419756562,1775356256204,-150.0,0.00015771,2]
[419756563,1775356256560,-150.0,0.00015771,2]
[419756564,1775356256582,-150.0,0.00015771,2]
[419756565,1775356256592,-150.0,0.00015779,2]
[419756566,1775356256601,-150.0,0.00015782,2]
[419756567,1775356256611,-440.0,0.00015787,2]
[419756568,1775356256620,-150.0,0.00015788,2]
[419756569,1775356256630,-150.0,0.00015789,2]
[419756570,1775356256640,-150.0,0.0001579,2]
[419756571,1775356256650,-150.0,0.00015798,2]
[419756572,1775356256660,-150.0,0.000158,2]
[419756573,1775356256670,-150.0,0.000158,2]
[419756574,1775356256679,-447.3229734,0.000158,2]
[419756575,1775356256690,-3000.0,0.000158,5]
[419756576,1775356256699,-5446.0,0.00015804,2]
[419756577,1775356256708,-150.0,0.00015804,2]
[419756578,1775356256718,-150.0,0.00015806,2]
[419756579,1775356256727,-150.0,0.00015806,2]
[419756580,1775356256736,-440.0,0.00015813,2]
[419756581,1775356256746,-440.0,0.00015815,2]
[419756582,1775356256756,-150.0,0.00015816,2]
[419756583,1775356256766,-150.0,0.00015816,2]
[419756584,1775356256776,-150.0,0.00015819,2]
[419756585,1775356256786,-150.0,0.0001582,2]
[419756586,1775356256795,-150.0,0.00015822,2]
[419756587,1775356256804,-440.0,0.00015827,2]
[419756588,1775356256814,-150.0,0.00015829,2]
[419756589,1775356256824,-150.0,0.0001583,2]
[419756590,1775356256834,-693.93,0.00015833,2]
[419756591,1775356256843,-150.0,0.00015834,2]
[419756592,1775356256852,-150.0,0.00015837,2]
[419756593,1775356256862,-97697.2091726,0.0001584,2]
[419756594,1775356256871,-150.0,0.00015843,2]
[419756595,1775356256881,-150.0,0.00015849,2]
[419756596,1775356256891,-440.0,0.00015852,2]
[419756597,1775356256900,-150.0,0.00015853,2]
[419756598,1775356256910,-150.0,0.00015853,2]
[419756599,1775356256920,-150.0,0.00015855,2]
[419756600,1775356256930,-150.0,0.00015855,2]
[419756601,1775356256939,-1000.0,0.00015857,2]
[419756602,1775356256949,-1000.0,0.00015857,2]
[419756603,1775356256961,-1000.0,0.00015857,2]
[419756604,1775356256970,-1000.0,0.00015857,2]
[419756605,1775356256980,-1000.0,0.00015857,2]
[419756606,1775356256989,-150.0,0.00015857,2]
[419756607,1775356256999,-150.0,0.00015867,2]
[419756608,1775356257009,-150.0,0.00015869,2]
[419756609,1775356257020,-150.0,0.00015869,2]
[419756610,1775356257030,-150.0,0.00015871,2]
[419756611,1775356257039,-500.0,0.00015872,2]
[419756612,1775356257049,-150.0,0.00015879,2]
[419756613,1775356257059,-150.0,0.00015879,2]
[419756614,1775356257068,-150.0,0.00015886,2]
[419756615,1775356257078,-150.0,0.00015886,2]
[419756616,1775356257088,-150.0,0.0001589,2]
[419756617,1775356257097,-923.76,0.0001589,2]
[419756618,1775356257106,-506.02,0.0001589,2]
[419756619,1775356257116,-250.0,0.0001589,2]
[419756620,1775356257127,-250.0,0.0001589,2]
[419756621,1775356257138,-204.40114749,0.0001589,2]
[419756622,1775356257150,-2285.98271306,0.0001589,2]
[419756623,1775356257160,-2500.0,0.0001589,2]
[419756624,1775356257171,-1000.0,0.0001589,2]
[419756625,1775356257180,-2500.0,0.0001589,2]
[419756626,1775356257192,-2500.0,0.0001589,2]
[419756627,1775356257204,-2500.0,0.0001589,2]
[419756628,1775356257215,-1000.0,0.0001589,2]
[419756629,1775356257225,-5446.0,0.00015893,2]
[419756630,1775356257236,-4000.0,0.00015895,2]
[419756631,1775356257246,-150.0,0.00015895,2]
[419756632,1775356257256,-177.24080314,0.000159,2]
[419756633,1775356257266,-150.0,0.000159,2]
[419756634,1775356257275,-150.0,0.000159,2]
[419756635,1775356257285,-150.0,0.000159,2]
[419756636,1775356257295,-150.0,0.000159,2]
[419756637,1775356257306,-3000.0,0.000159,5]
[419756638,1775356257315,-1233.36911653,0.000159,2]
[419756639,1775356257324,-8099.66561587,0.000159,2]
[419756640,1775356257333,-1269.51892114,0.000159,2]
[419756641,1775356257342,-28192.14363459,0.000159,2]
[419756642,1775356257351,-408.26690022,0.000159,2]
[419756643,1775356257361,-488.611803,0.00015902,2]
[419756644,1775356257370,-488.611803,0.00015902,2]
[419756645,1775356257379,-488.611803,0.00015902,2]
[419756646,1775356257388,-488.611803,0.00015902,2]
[419756647,1775356257398,-6453.0,0.00015902,2]
[419756648,1775356257409,-1613.0,0.00015902,2]
[419756649,1775356257420,-151.0,0.00015902,2]
[419756650,1775356257430,-150.0,0.00015902,2]
[419756651,1775356257442,-150.0,0.00015903,2]
[419756652,1775356257451,-150.0,0.00015903,2]
[419756653,1775356257460,-150.0,0.00015908,2]
[419756654,1775356257469,-150.0,0.00015909,2]
[419756655,1775356257479,-150.0,0.00015911,2]
[419756656,1775356257488,-150.0,0.00015914,2]
[419756657,1775356257497,-150.0,0.00015918,2]
[419756658,1775356257507,-150.0,0.00015921,2]
[419756659,1775356257516,-150.0,0.00015926,2]
[419756660,1775356257526,-150.0,0.00015927,2]
[419756661,1775356257535,-440.0,0.00015933,2]
[419756662,1775356257545,-150.0,0.00015933,2]
[419756663,1775356257555,-150.0,0.00015935,2]
[419756664,1775356257564,-150.0,0.0001594,2]
[419756665,1775356257574,-150.0,0.00015943,2]
[419756666,1775356257583,-150.0,0.00015945,2]
[419756667,1775356257593,-440.0,0.00015946,2]
[419756668,1775356257602,-150.0,0.00015948,2]
[419756669,1775356257612,-150.0,0.00015951,2]
[419756670,1775356257621,-150.0,0.00015952,2]
[419756671,1775356257631,-150.0,0.00015952,2]
[419756672,1775356257640,-1337.87763051,0.00015956,2]
[419756673,1775356257650,-150.0,0.00015963,2]
[419756674,1775356257660,-150.0,0.00015967,2]
[419756675,1775356257670,-150.0,0.0001597,2]
[419756676,1775356257679,-150.0,0.00015971,2]
[419756677,1775356257688,-500.0,0.00015973,2]
[419756678,1775356257698,-500.0,0.00015973,2]
[419756679,1775356257707,-500.0,0.00015973,2]
[419756680,1775356257717,-150.0,0.00015974,2]
[419756681,1775356257727,-150.0,0.00015976,2]
[419756682,1775356257737,-672.962147,0.0001598,2]
[419756683,1775356257746,-672.962147,0.0001598,2]
[419756684,1775356257755,-672.962147,0.0001598,2]
[419756685,1775356257765,-672.962147,0.0001598,2]
[419756686,1775356257774,-151.0,0.0001598,2]
[419756687,1775356257783,-150.0,0.00015982,2]
[419756688,1775356257793,-150.0,0.00015984,2]
[419756689,1775356257803,-175.14673955,0.00015984,2]
[419756690,1775356257812,-701.5627369,0.0001599,2]
[419756691,1775356257823,-151.0,0.00015997,2]
[419756692,1775356257832,-500.0,0.00015999,2]
[419756693,1775356257842,-500.0,0.00015999,2]
[419756694,1775356257852,-232.5,0.00015999,2]
[419756695,1775356257862,-636.9,0.00015999,2]
[419756696,1775356257872,-636.9,0.00015999,2]
[419756697,1775356257881,-636.9,0.00015999,2]
[419756698,1775356257891,-636.9,0.00015999,2]
[419756699,1775356257900,-636.9,0.00015999,2]
[419756700,1775356257910,-636.9,0.00015999,2]
[419756701,1775356257919,-637.02,0.00015999,2]
[419756702,1775356257928,-824.43,0.00015999,2]
[419756703,1775356257938,-824.43,0.00015999,2]
[419756704,1775356257948,-824.43,0.00015999,2]
[419756705,1775356257957,-824.43,0.00015999,2]
[419756706,1775356257967,-824.53889533,0.00015999,2]
[419756707,1775356257976,-500.0,0.00015999,2]
[419756708,1775356257986,-500.0,0.00015999,2]
[419756709,1775356257995,-484.03247685,0.00015999,2]
[419756710,1775356258005,-879.21,0.00015999,2]
[419756711,1775356258014,-879.21,0.00015999,2]
[419756712,1775356258024,-879.21,0.00015999,2]
[419756713,1775356258034,-879.21,0.00015999,2]
[419756714,1775356258044,-879.21,0.00015999,2]
[419756715,1775356258053,-879.21,0.00015999,2]
[419756716,1775356258063,-879.43598884,0.00015999,2]
[419756717,1775356258073,-500.0,0.00015999,2]
[419756718,1775356258084,-500.0,0.00015999,2]
[419756719,1775356258094,-500.0,0.00015999,2]
[419756720,1775356258103,-500.0,0.00015999,2]
[419756721,1775356258113,-500.0,0.00015999,2]
[419756722,1775356258123,-422.60958238,0.00015999,2]
[419756723,1775356258132,-1104.74,0.00015999,2]
[419756724,1775356258142,-1104.74,0.00015999,2]
[419756725,1775356258152,-1104.74,0.00015999,2]
[419756726,1775356258162,-1104.74,0.00015999,2]
[419756727,1775356258172,-1104.74,0.00015999,2]
[419756728,1775356258181,-1104.74,0.00015999,2]
[419756729,1775356258191,-1104.90384804,0.00015999,2]
[419756730,1775356258200,-150.14541726,0.00016,2]
[419756731,1775356258210,-245.0843554,0.00016,2]
[419756732,1775356258219,-153.46464446,0.00016,2]
[419756733,1775356258228,-154.67984071,0.00016,2]
[419756734,1775356258239,-150.17540857,0.00016,2]
[419756735,1775356258248,-151.90807937,0.00016,2]
[419756736,1775356258259,-151.01430456,0.00016,2]
[419756737,1775356258268,-151.22967101,0.00016,2]
[419756738,1775356258278,-150.60277619,0.00016,2]
[419756739,1775356258288,-155.5732344,0.00016,2]
[419756740,1775356258297,-287.38140471,0.00016,2]
[419756741,1775356258307,-154.07899059,0.00016,2]
[419756742,1775356258316,-154.24536522,0.00016,2]
[419756743,1775356258326,-151.75828689,0.00016,2]
[419756744,1775356258335,-1048370.24610557,0.00016,2]
[419756745,1775356259595,-669.87,0.00016,2]
[419756746,1775356259610,-2414.8899999,0.00016,2]
[419756747,1775356259703,-326.10789128,0.00010721,2]
[419756748,1775356259716,-180238.50604567,0.00016,2]
[419756749,1775356259774,-4339.48209871,0.00016,2]
[419756750,1775356259976,-4996835.18105119,0.00016,2]
[419756751,1775356260502,-2200.0,0.00016,2]
[419756752,1775356261199,-453.0,0.00016,2]
[419756753,1775356262970,-209.19812795,0.0001335,2]
[419756754,1775356262979,-115.43924682,0.00016,2]
[419756755,1775356262995,-5547.40013359,0.00016,2]
[419756756,1775356263395,-13410.55161236,0.00016,2]
[419756757,1775356269176,500.0,9.774e-05,2]
[419756774,1775357349349,5003.0,9.843e-05,2]
[419756799,1775357432778,-255.0,9.988e-05,2]
[419756800,1775357432787,-300.0,9.988e-05,2]
[419756801,1775357432797,-1200.0,9.988e-05,2]
[419756802,1775357432807,-236.0,9.989e-05,2]
[419756803,1775357432816,-236.0,9.989e-05,2]